Cogmind - Beta 12 @@@ ROGUE MODE // 2023.04.12 @ 12:14:58 Player: ZLD1 Result: Destroyed by G-47 Trooper with Particle Gun Performance ------------- Evolutions (0) 0 Regions Visited (2) 400 Robots Destroyed (13) 65 Value Destroyed (269) 269 Prototype IDs (0) 0 Alien Tech Used (0) 0 Bonus (0) 0 TOTAL SCORE: 734 Bonus ------- None Cogmind --------- Core Integrity 0/250 Matter 273/300 Energy 75/100 System Corruption 0% Temperature Hot (253) Movement Core (200) Ox3 Location -10/Mines Parts ------- > --- POWER (1) -------- (None) > --- PROPULSION (2) --- Aluminum Leg > --- UTILITY (2) ------ Small Storage Unit Signal Interpreter > --- WEAPON (2) ------- Particle Gun Assault Rifle > --- INVENTORY (8) ---- Light Ion Engine Light Ion Engine Aluminum Leg Visual Processing Unit Improved Terrain Scanner Datajack Mining Laser Ripper Peak State ------------ > --- POWER ------------ Light Ion Engine > --- PROPULSION ------- Aluminum Leg Aluminum Leg > --- UTILITY ---------- Small Storage Unit Signal Interpreter > --- WEAPON ----------- Particle Gun Assault Rifle > --- INVENTORY -------- Light Ion Engine Visual Processing Unit Improved Terrain Scanner Datajack Mining Laser Ripper [Rating: 9] Favorites ----------- Power Light Ion Engine Engine Light Ion Engine Propulsion Aluminum Leg Leg Aluminum Leg Utility Small Storage Unit Device Sensor Array Storage Small Storage Unit Processor Signal Interpreter Weapon Assault Rifle Energy Gun Particle Gun Ballistic Gun Assault Rifle Build | -11 -10 -10 ------- Run | Jun Mat Min Slots Evolved . | . . . Power . | . . . Propulsion . | . . . Utility . | . . . Weapon . | . . . Parts Attached 11 | 6 3 2 Power 1 | 1 . . Engine 1 | 1 . . Core . | . . . Reactor . | . . . Propulsion 3 | 2 . 1 Treads . | . . . Leg 3 | 2 . 1 Wheel . | . . . Hover . | . . . Flight . | . . . Utility 3 | 1 2 . Device 1 | . 1 . Storage 1 | 1 . . Processor 1 | . 1 . Hackware . | . . . Protection . | . . . Artifact . | . . . Weapon 4 | 2 1 1 Energy Gun 3 | 1 1 1 Energy Cannon . | . . . Ballistic Gun 1 | 1 . . Ballistic Cannon . | . . . Launcher . | . . . Special Weapon . | . . . Impact Weapon . | . . . Slashing Weapon . | . . . Piercing Weapon . | . . . Special Melee Weapon . | . . . Unidentified Prototypes . | . . . Parts Lost 2 | . . 2 Power 1 | . . 1 Propulsion 1 | . . 1 Utility . | . . . Weapon . | . . . Highest Loss Streak 1 | . . 1 To Critical Strikes . | . . . Average Slot Usage (%) 93 | . 86 97 Engine 12 | . 14 12 Leg 27 | . 28 27 Storage 14 | . 14 14 Processor 9 | . 1 14 Energy Gun 13 | . 13 14 Ballistic Gun 14 | . 14 14 Naked Turns . | . . . Heaviest Build 13 | 12 13 13 Greatest Support 20 | 20 20 20 Greatest Overweight (x) 3 | . . 3 Average Overweight (x) . | . . . Largest Inventory Capacity 8 | 8 8 8 Average Capacity 7 | 7 8 8 Most Carried 8 | 5 5 8 Average Carried 4 | 1 2 5 Final Capacity 8 | 8 8 8 Final Carried 8 | 2 4 8 Class Distribution -------------------- 100% | Mutant Dominant Class ---------------- Mutant | -10/Materials Mutant | -10/Mines Resources | -11 -10 -10 ----------- Run | Jun Mat Min Matter Collected 375 | 197 85 93 Remotely . | . . . Salvage Created 381 | 111 85 185 Parts 28 | 9 9 10 Haulers Intercepted . | . . . Recyclers Shooed 2 | . 2 . Parts Field Recycled . | . . . Retrieved Matter . | . . . Parts Self-Destructed . | . . . Prevented . | . . . Kills | -11 -10 -10 ------- Run | Jun Mat Min Combat Hostiles Destroyed 8 | . 2 6 Guns 8 | . 2 6 Classes Destroyed 5 | 2 2 1 Tunneler 3 | 3 . . Recycler 1 | 1 . . Watcher 1 | . 1 . Swarmer 3 | . . 3 Grunt 5 | . 2 3 Best Kill Streak 4 | 4 2 4 Combat Bots Only 4 | . 2 4 Max Kills in Single Turn 2 | 1 1 2 Gunslinging 1 | . . 1 Exploded . | . . . Melee . | . . . Uniques/NPCs Destroyed . | . . . Combat | -11 -10 -10 -------- Run | Jun Mat Min Damage Taken 751 | . 66 685 Core 255 | . 38 217 Absorbed by Shields . | . . . Core Remaining (%) 100 | 100 . . Volleys Fired 47 | 6 13 28 Largest 2 | 2 2 2 Hottest 85 | 70 85 85 Shots Fired 86 | 12 26 48 Gun 86 | 12 26 48 Cannon . | . . . Launcher . | . . . Special . | . . . Kinetic 40 | 6 13 21 Thermal 46 | 6 13 27 Explosive . | . . . Electromagnetic . | . . . Robot Hit Streak 9 | 8 9 7 Robot Miss Streak 7 | . 7 4 Penetration Max . | . . . Secondary Targets 3 | . . 3 Max Gunslinging Chain 1 | . . 1 Shots Hit Robots 50 | 8 13 29 Core Hits 21 | 5 6 10 Critical Kills . | . . . Critical Parts Destroyed . | . . . Critical Strikes 2 | . 1 1 Burn 2 | . 1 1 Melee Attacks . | . . . Impact . | . . . Slashing . | . . . Piercing . | . . . Sneak Attacks . | . . . Combat Hostiles . | . . . Follow-up Attacks . | . . . Damage Inflicted 719 | 130 163 426 Guns 704 | 130 159 415 Cannons . | . . . Explosions . | . . . Melee . | . . . Ramming 15 | . 4 11 Kinetic 308 | 55 96 157 Thermal 396 | 75 63 258 Explosive . | . . . Electromagnetic . | . . . Impact . | . . . Slashing . | . . . Piercing . | . . . Highest Corruption . | . . . Average Corruption . | . . . Corruption Purged . | . . . Corruption Blocked . | . . . Overload Shots . | . . . Overflow Damage . | . . . Projectiles . | . . . Explosions . | . . . Melee . | . . . Knockbacks . | . . . Impact . | . . . Kinetic . | . . . Secondary . | . . . Self-Inflicted Damage . | . . . Shots . | . . . Rammed . | . . . Targets Rammed 5 | . 1 4 Kicked 5 | . 1 4 Crushed . | . . . Highest Temperature 345 | 45 54 345 Average Temperature 120 | 20 22 188 Received Heat Transfer 378 | . 39 339 Effects 4 | . . 4 Energy Bleed 1 | . . 1 Interference 1 | . . 1 Short Circuit 2 | . . 2 Siege Activations . | . . . Robots Corrupted . | . . . Combat Hostiles . | . . . Parts Fried . | . . . Impact Corruptions . | . . . Robots Melted . | . . . Combat Hostiles . | . . . Parts Melted 2 | 1 1 . Heat Transferred 1184 | 222 259 703 Parts Sabotaged . | . . . Parts Stolen . | . . . Parts Stripped . | . . . Power Chain Reactions . | . . . Missiles Intercepted . | . . . Alert | -11 -10 -10 ------- Run | Jun Mat Min Peak Influence 144 | 20 100 144 Initial 39 | . 13 39 Average 49 | 4 73 44 Maximum Alert Level . | . . . Low Security (%) 100 | 100 100 100 Level 1 . | . . . Level 2 . | . . . Level 3 . | . . . Level 4 . | . . . Level 5 . | . . . High Security . | . . . Max Security . | . . . Squads Dispatched . | . . . Investigation . | . . . Extermination . | . . . Reinforcement . | . . . Assault . | . . . Garrison . | . . . Intercept . | . . . Searches Triggered . | . . . Construction Impeded . | . . . Haulers Reinforced . | . . . Active Scanning Responses . | . . . Cargo Convoy Interrupts . | . . . Stealth | -11 -10 -10 --------- Run | Jun Mat Min Distress Signals . | . . . Communications Jammed . | . . . Distress Signals . | . . . Times Spotted 12 | . 4 8 Peak Tracking Total 5 | . 2 5 Tactical Retreats 1 | . . 1 Traps | -11 -10 -10 ------- Run | Jun Mat Min Traps Triggered . | . . . Indirectly . | . . . Trap Hack Attempts . | . . . Triggered . | . . . Disarmed . | . . . Reprogrammed . | . . . Reused . | . . . Traps Extracted . | . . . Installed . | . . . Triggered . | . . . Machines | -11 -10 -10 ---------- Run | Jun Mat Min Machines Disabled . | . . . Max in Single Turn . | . . . Machines Repaired . | . . . Machines Sabotaged . | . . . Overloaded Fab Kills . | . . . Hacking | -11 -10 -10 --------- Run | Jun Mat Min Machines Accessed 1 | . 1 . Terminals 1 | . 1 . Fabricators . | . . . Repair Stations . | . . . Recycling Units . | . . . Scanalyzers . | . . . Garrison Access . | . . . Total Hacks 2 | . 2 . Successful 2 | . 2 . Failed . | . . . Catastrophic . | . . . Database Lockouts . | . . . Manual . | . . . Terminals 2 | . 2 . Fabricators . | . . . Repair Stations . | . . . Recycling Units . | . . . Scanalyzers . | . . . Garrison Access . | . . . Terminal Hacks 2 | . 2 . Record 1 | . 1 . Zone Layout 1 | . 1 . Fabricator Hacks . | . . . Repair Station Hacks . | . . . Recycling Unit Hacks . | . . . Scanalyzer . | . . . Garrison Access Hacks . | . . . Unauthorized Hacks . | . . . Terminals . | . . . Fabricators . | . . . Repair Stations . | . . . Recycling Units . | . . . Scanalyzers . | . . . Garrison Access . | . . . Data Cores Recovered . | . . . Used . | . . . Hacking Detections . | . . . Full Trace Events . | . . . Feedback Events . | . . . Feedback Blocked . | . . . Robot Schematics Acquired . | . . . Robots Built . | . . . Authchips . | . . . Time . | . . . Total Robot Build Rating . | . . . Part Schematics Acquired . | . . . Parts Built . | . . . Authchips . | . . . Time . | . . . Total Part Build Rating . | . . . Parts Repaired . | . . . Time . | . . . Parts Recycled . | . . . Recycled Matter . | . . . Retrieved Matter . | . . . Retrieved Components . | . . . Parts Scanalyzed . | . . . Part Schematics Acquired . | . . . Parts Damaged . | . . . Bothacking | -11 -10 -10 ------------ Run | Jun Mat Min Used RIF Installer . | . . . Robots Hacked . | . . . Non-combat . | . . . Combat . | . . . Robot Hacks Applied . | . . . Relay Couplers Released . | . . . Fabnet Peak Effective % . | . . . Robots Rewired . | . . . Allies Hacked . | . . . Hacks Repelled . | . . . Allies | -11 -10 -10 -------- Run | Jun Mat Min Total Allies 1 | . . 1 Largest Group 1 | . . 1 Highest-Rated Group 31 | . . 31 Highest-Rated Ally 31 | . . 31 Total Orders . | . . . Ally Attacks . | . . . Total Damage . | . . . Kills . | . . . Allies Corrupted . | . . . Allies Melted . | . . . Intel | -11 -10 -10 ------- Run | Jun Mat Min Robot Analysis Total . | . . . Derelict Logs Recovered 1 | . . 1 Drone Launches . | . . . Drone Recoveries . | . . . Exploration | -11 -10 -10 ------------- Run | Jun Mat Min Turns Passed 891 | 91 291 509 Spaces Moved 600 | 60 193 347 Core 18 | 17 . 1 Treads . | . . . Legs 582 | 43 193 346 Wheels . | . . . Hover . | . . . Flight . | . . . Fastest Speed 50 | 50 120 120 Average Speed 118 | 100 120 120 Slowest Speed 200 | 120 120 200 Overloaded Moves . | . . . Propulsion Burnouts . | . . . Robots Hopped . | . . . Cave-ins Triggered . | . . . Exploration Rate (%) 40 | 4 42 75 Regions Visited 2 Branch Regions 1 Pre-discovered Areas . | . . . Known Exits Taken 1 | . 1 . Unknown Exits Taken 1 | 1 . . Scrap Searched 1 | . . 1 Spaces Dug . | . . . Terrain Destroyed . | . . . Melee . | . . . Projectile . | . . . AOE . | . . . Terrain Rammed . | . . . Walls Destroyed . | . . . Machines Disabled . | . . . Actions | -11 -10 -10 --------- Run | Jun Mat Min Total 695 | 78 227 390 Wait 15 | . 11 4 Move 598 | 59 192 347 Hop . | . . . Pick Up 16 | 7 5 4 Fast Attach 1 | 1 . . Attach 8 | 5 3 . Detach . | . . . Swap 2 | . . 2 Drop 3 | . 2 1 Fire 47 | 6 13 28 Melee . | . . . Ram . | . . . Kick 5 | . 1 4 Crush . | . . . Escape Stasis . | . . . Rewire . | . . . Trap . | . . . Miscellaneous . | . . . Route ------- -11/Junkyard -10/Materials (discovered 3 exits: *Mat x2 / *Min) -10/Mines (discovered 2 exits: *Mat x2) History --------- Turn | Location | Event 2 | -11/Junkyard | Discovered new exit (range 16) 92 | -11/Junkyard | Entered Materials 205 | -10/Materials | Discovered new exit (range 11) 252 | -10/Materials | Discovered new exit (range 12) 294 | -10/Materials | Discovered new exit (range 5) 312 | -10/Materials | Build established: Mutant 382 | -10/Materials | Identified exit to Mines 383 | -10/Materials | Entered Mines 386 | -10/Mines | Received a Mining Laser from a helpful Derelict 514 | -10/Mines | Learned 4 Materials zone layouts 666 | -10/Mines | A weapon hastily lodged in a ceiling crevice suddenly fell to the ground 721 | -10/Mines | Discovered new exit (range 5) 774 | -10/Mines | Discovered new exit (range 10) 788 | -10/Mines | Identified exit to Materials 828 | -10/Mines | Core integrity fell below 50% 848 | -10/Mines | Core integrity fell below 20% 892 | -10/Mines | Destroyed by G-47 Trooper with Particle Gun Last Messages --------------- 00853_ R-06 Scavenger collects Flight Unit. 00854_ Acquired 34 matter. 00855_ K-01 Serf collects debris. 00857_ Acquired Aluminum Leg. 00859_ K-01 Serf collects debris. 00865_ Destroyed Lgt. Nuclear Core. 00866_ K-01 Serf collects debris. 00872_ Overheating: System interference. 00872_ Assault Rifle temporarily disabled. 00873_ K-01 Serf collects debris. 00874_ K-01 Serf suffers critical hit (Burn). 00874_ K-01 Serf destroyed. 00876_ Overheating: Energy bleed (-13). 00878_ Aluminum Leg destroyed. 00885_ Aluminum Leg broken. 00885_ Overheating: Short circuit. 00887_ Particle Gun broken. 00887_ Overheating: Short circuit. 00890_ K-01 Serf collects debris. 00891_ Dropped Broken Particle Gun. Map ----- +----------------------------------------------------+ | | | | | | | | | | | | | | | | | | | ??????????????????????????????????????????? | | ??????????????????????????????????????????? | | ??????????????????????????????????????????? | | ?????????????#######??????????####????????? | | ????????????## ##????????? ????????? | | ############# #????????? ???????? | | #??????? ?????? | | ##### ###### k #####??? """ """ ?????? | | ????# #????# [ ##???""" """??????? | | ????# #????## < %% ##???"" """??????? | | ????# #?????## ##% %* #???? ???????? | | #???# #??????## ### % #????# #???????? | | ##??# #?##????####### #????# #???????? | | #### ### ##??????## r #????# ####????? | | ## ##?????# ###### #????? | | ###### ##????# *g= ## #????? | | #?????# ##???# @%% ## #????? | | ##????# #???## ==### ### ##???? | | ####### ##???# #?# ## #???? | | #### ##??# ## #???? | | ## ### #### ## ##### ##???? | | #### ## ### ##### ##????? | | ???# ### ##### ######## ##?????? | | ???## ##?####?## #????# #??????? | | ????## ##??????## #????# < ##??????? | | ?????# #?????### #????## ##???????? | | ?????# #????## #?????#####????????? | | ?????# ##??## ##??????????????????? | | ????## #### ####???????????????????? | | ????# #####??????????????????????? | | ???## ##??????????????????????????? | | ?### ####???????????????????????????? | | ?# ##????????####??????????????????? | | ?# """ ##???????## ##?????????????????? | | ## """ ######### ##????????????????? | | # """ ## ##???###?????????? | | # ##?# #?????????? | | # ## ########### ## #?????????? | | # ## #?????????#### #?????????? | | # ## #????????????# #?????????? | | ## #????????????# ##?????????? | +----------------------------------------------------+ Best States ------------- Heat Dissipation 25 Energy Generation 10 Energy Capacity 125 Matter Stores 300 Matter Capacity 300 Sight Range 16 Robot Scan Range 14 Terrain Scan Density 10 Evasion (%) 55 Item Schematics ----------------- None Robot Schematics ------------------ None Fabricated ------------ Nothing Alien Tech Used ----------------- None Achievements -------------- None Challenges ------------ None Game ------ Seed SkeletonReactiveExpander Manual? 0 Play Time 00:09:43 Cumulative 31.0 hours Start 2023.04.12 @ 11:58:26 End 2023.04.12 @ 12:14:58 Sessions 1 Manual Loads 0 Difficulty Rogue Special Mode None Game No. 69 Rogue 69 Adventurer 0 Explorer 0 Win Type - Total 0 Types 0/0/0/0/0/0/0/0/0 Lore% 24 Gallery% 35 Achievement% 26 Wizard Run 0 Options --------- ASCII 0 Keyboard 0 Movement Mouse Keybinds 0 Fullscreen 1 Font 24/Smallcaps Map View 64x52 Tactical HUD 1 Map Filters NONE Filters NONE Steam 1 RUN: 54e4a7bd-e0b4-44ba-9763-2b950be9d2d4